[Event "Live Chess"]
[Site "Chess.com"]
[Date "2011.01.03"]
[Round "-"]
[White "yungever"]
[Black "hipposcottimus"]
[Result "0-1"]
[CurrentPosition "7k/ppp3pp/8/4r3/1P6/r6P/6PK/7R w - -"]
[Timezone "UTC"]
[ECO "A00"]
[ECOUrl "https://www.chess.com/openings/Anderssen-Opening-1...e5"]
[UTCDate "2011.01.03"]
[UTCTime "04:13:08"]
[WhiteElo "1096"]
[BlackElo "1382"]
[TimeControl "600"]
[Termination "hipposcottimus won by resignation"]
[StartTime "04:13:08"]
[EndDate "2011.01.03"]
[EndTime "04:20:30"]
[Link "https://www.chess.com/game/live/83672722"]

1. a3 {[%clk 0:10:00]} 1... e5 {[%clk 0:10:00]} 2. d4 {[%clk 0:09:47.4]} 2... exd4 {[%clk 0:09:56.6]} 3. Qxd4 {[%clk 0:09:44.8]} 3... Nc6 {[%clk 0:09:55.8]} 4. Qd1 {[%clk 0:09:41.4]} 4... d5 {[%clk 0:09:52.8]} 5. h3 {[%clk 0:09:37.1]} 5... f5 {[%clk 0:09:44.5]} 6. Nc3 {[%clk 0:09:30.1]} 6... Nf6 {[%clk 0:09:41.2]} 7. Nf3 {[%clk 0:09:26.6]} 7... d4 {[%clk 0:09:30.8]} 8. Nb1 {[%clk 0:09:11.1]} 8... Bc5 {[%clk 0:09:24.3]} 9. e3 {[%clk 0:08:59.4]} 9... O-O {[%clk 0:09:01.5]} 10. Bb5 {[%clk 0:08:26.5]} 10... dxe3 {[%clk 0:08:45.5]} 11. Qxd8 {[%clk 0:08:22.6]} 11... exf2+ {[%clk 0:08:42.3]} 12. Kf1 {[%clk 0:08:07.4]} 12... Nxd8 {[%clk 0:08:41.8]} 13. Bc4+ {[%clk 0:08:03.3]} 13... Kh8 {[%clk 0:08:38.2]} 14. Ne5 {[%clk 0:07:49.5]} 14... Be6 {[%clk 0:08:27.4]} 15. Bxe6 {[%clk 0:07:44.1]} 15... Nxe6 {[%clk 0:08:24.3]} 16. Nd3 {[%clk 0:07:42.3]} 16... Ne4 {[%clk 0:08:17.7]} 17. b4 {[%clk 0:07:37.7]} 17... Bd4 {[%clk 0:08:13.1]} 18. c3 {[%clk 0:07:33.9]} 18... Nxc3 {[%clk 0:08:01.5]} 19. Nxc3 {[%clk 0:07:30.8]} 19... Bxc3 {[%clk 0:07:59.7]} 20. Rb1 {[%clk 0:07:28.1]} 20... Rad8 {[%clk 0:07:46.6]} 21. Nxf2 {[%clk 0:07:24.5]} 21... Bd4 {[%clk 0:07:41.1]} 22. Nd3 {[%clk 0:07:00.5]} 22... Bb6 {[%clk 0:07:29.1]} 23. Ke2 {[%clk 0:06:49.4]} 23... Rfe8 {[%clk 0:07:21.8]} 24. Be3 {[%clk 0:06:41.7]} 24... Bxe3 {[%clk 0:07:13.2]} 25. Kxe3 {[%clk 0:06:36.9]} 25... Nc5+ {[%clk 0:07:11.5]} 26. Kf4 {[%clk 0:06:26]} 26... Nxd3+ {[%clk 0:07:07.7]} 27. Kxf5 {[%clk 0:06:25.3]} 27... Re5+ {[%clk 0:07:04.8]} 28. Kg4 {[%clk 0:06:14.3]} 28... Nf2+ {[%clk 0:06:56.2]} 29. Kg3 {[%clk 0:06:10.3]} 29... Nxh1+ {[%clk 0:06:53.5]} 30. Rxh1 {[%clk 0:06:08.7]} 30... Rd3+ {[%clk 0:06:49.8]} 31. Kh2 {[%clk 0:06:07]} 31... Rxa3 {[%clk 0:06:47.3]} 0-1

[Event "Live Chess"]
[Site "Chess.com"]
[Date "2011.01.03"]
[Round "-"]
[White "hipposcottimus"]
[Black "Beast23"]
[Result "1-0"]
[CurrentPosition "rn3rk1/2p2ppp/1pN2n2/2b1p3/4P3/1B2BQ2/PPP2PPP/R4RK1 w - -"]
[Timezone "UTC"]
[ECO "C41"]
[ECOUrl "https://www.chess.com/openings/Philidor-Defense-3.Nc3"]
[UTCDate "2011.01.03"]
[UTCTime "04:06:55"]
[WhiteElo "1382"]
[BlackElo "1349"]
[TimeControl "600"]
[Termination "hipposcottimus won by resignation"]
[StartTime "04:06:55"]
[EndDate "2011.01.03"]
[EndTime "04:10:12"]
[Link "https://www.chess.com/game/live/83671524"]

1. e4 {[%clk 0:10:00]} 1... e5 {[%clk 0:10:00]} 2. Nf3 {[%clk 0:09:58.7]} 2... d6 {[%clk 0:09:58.1]} 3. Nc3 {[%clk 0:09:57.5]} 3... Bg4 {[%clk 0:09:53.5]} 4. d4 {[%clk 0:09:56.7]} 4... Nf6 {[%clk 0:09:48.7]} 5. dxe5 {[%clk 0:09:52.5]} 5... Bxf3 {[%clk 0:09:36.8]} 6. Qxf3 {[%clk 0:09:47.5]} 6... dxe5 {[%clk 0:09:35.1]} 7. Bc4 {[%clk 0:09:33.7]} 7... Qd4 {[%clk 0:09:18.5]} 8. Bb3 {[%clk 0:09:10.5]} 8... Bb4 {[%clk 0:09:14.5]} 9. O-O {[%clk 0:09:00.8]} 9... O-O {[%clk 0:09:04]} 10. Be3 {[%clk 0:08:51.1]} 10... Qd6 {[%clk 0:08:46.5]} 11. Nb5 {[%clk 0:08:42.3]} 11... Qc6 {[%clk 0:08:30.7]} 12. Nxa7 {[%clk 0:08:39.5]} 12... Bc5 {[%clk 0:08:20.7]} 13. Nxc6 {[%clk 0:08:35.3]} 13... b6 {[%clk 0:08:14.4]} 1-0

[Event "Live Chess"]
[Site "Chess.com"]
[Date "2011.01.03"]
[Round "-"]
[White "Wassmann"]
[Black "hipposcottimus"]
[Result "0-1"]
[CurrentPosition "5k2/ppp2pp1/7n/8/3P4/2P5/PP4r1/2KBr1NR b - -"]
[Timezone "UTC"]
[ECO "C23"]
[ECOUrl "https://www.chess.com/openings/Bishops-Opening-2...Nc6-3.Nc3"]
[UTCDate "2011.01.03"]
[UTCTime "03:46:11"]
[WhiteElo "1391"]
[BlackElo "1374"]
[TimeControl "300+7"]
[Termination "hipposcottimus won by resignation"]
[StartTime "03:46:11"]
[EndDate "2011.01.03"]
[EndTime "03:54:57"]
[Link "https://www.chess.com/game/live/83667258"]

1. e4 {[%clk 0:05:00]} 1... e5 {[%clk 0:05:00]} 2. Bc4 {[%clk 0:05:04.9]} 2... Nc6 {[%clk 0:05:05.8]} 3. Nc3 {[%clk 0:05:08.9]} 3... Bb4 {[%clk 0:05:06.8]} 4. Nd5 {[%clk 0:05:13.8]} 4... Nf6 {[%clk 0:05:08.8]} 5. Nxb4 {[%clk 0:05:08]} 5... Nxb4 {[%clk 0:05:13]} 6. c3 {[%clk 0:05:12.3]} 6... d5 {[%clk 0:05:16.9]} 7. exd5 {[%clk 0:04:56.1]} 7... Nbxd5 {[%clk 0:05:21.2]} 8. Qe2 {[%clk 0:04:37.4]} 8... Qd6 {[%clk 0:04:50.8]} 9. d4 {[%clk 0:04:36.5]} 9... e4 {[%clk 0:04:51.3]} 10. Bg5 {[%clk 0:04:36.6]} 10... Bf5 {[%clk 0:04:39.2]} 11. O-O-O {[%clk 0:04:19.8]} 11... O-O {[%clk 0:04:08.7]} 12. Bxf6 {[%clk 0:04:23.9]} 12... Nxf6 {[%clk 0:04:10.6]} 13. f3 {[%clk 0:04:17.4]} 13... Rfe8 {[%clk 0:03:37.3]} 14. fxe4 {[%clk 0:04:07.1]} 14... Rxe4 {[%clk 0:03:26.6]} 15. Qf3 {[%clk 0:03:58.1]} 15... Bg4 {[%clk 0:03:19.3]} 16. Qg3 {[%clk 0:03:40.4]} 16... Qxg3 {[%clk 0:03:15.4]} 17. hxg3 {[%clk 0:03:36.1]} 17... Bxd1 {[%clk 0:03:19.5]} 18. Kxd1 {[%clk 0:03:40]} 18... Ng4 {[%clk 0:03:26.2]} 19. Bd3 {[%clk 0:03:45.3]} 19... Re3 {[%clk 0:03:28.6]} 20. Bxh7+ {[%clk 0:03:42.2]} 20... Kf8 {[%clk 0:03:29.9]} 21. Kd2 {[%clk 0:03:44.8]} 21... Rxg3 {[%clk 0:03:25.9]} 22. Bf5 {[%clk 0:03:49.4]} 22... Rxg2+ {[%clk 0:03:26]} 23. Kc1 {[%clk 0:03:45.5]} 23... Nh6 {[%clk 0:03:28]} 24. Be4 {[%clk 0:03:47.5]} 24... Re8 {[%clk 0:03:33.1]} 25. Bc2 {[%clk 0:03:47.2]} 25... Re1+ {[%clk 0:03:35.3]} 26. Bd1 {[%clk 0:03:48.7]} 0-1

[Event "Live Chess"]
[Site "Chess.com"]
[Date "2011.01.03"]
[Round "-"]
[White "hipposcottimus"]
[Black "Russian-tank"]
[Result "0-1"]
[CurrentPosition "r1bqk2r/p1p2pp1/2p2n1p/8/2p1P3/2P2P2/P1P3PP/R1BQ1RK1 w kq -"]
[Timezone "UTC"]
[ECO "C55"]
[ECOUrl "https://www.chess.com/openings/Italian-Game-Two-Knights-Defense"]
[UTCDate "2011.01.03"]
[UTCTime "03:36:38"]
[WhiteElo "1361"]
[BlackElo "1403"]
[TimeControl "600"]
[Termination "Russian-tank won by resignation"]
[StartTime "03:36:38"]
[EndDate "2011.01.03"]
[EndTime "03:38:35"]
[Link "https://www.chess.com/game/live/83665262"]

1. e4 {[%clk 0:10:00]} 1... e5 {[%clk 0:10:00]} 2. Nf3 {[%clk 0:09:54.9]} 2... Nf6 {[%clk 0:09:57.9]} 3. Bc4 {[%clk 0:09:48.3]} 3... Nc6 {[%clk 0:09:50.3]} 4. Nc3 {[%clk 0:09:44.7]} 4... h6 {[%clk 0:09:44.5]} 5. d4 {[%clk 0:09:37.2]} 5... exd4 {[%clk 0:09:38.9]} 6. Nxd4 {[%clk 0:09:36.4]} 6... Bb4 {[%clk 0:09:29.2]} 7. Nxc6 {[%clk 0:09:17.6]} 7... Bxc3+ {[%clk 0:09:23]} 8. bxc3 {[%clk 0:09:15.9]} 8... bxc6 {[%clk 0:09:16.7]} 9. f3 {[%clk 0:09:06.1]} 9... d5 {[%clk 0:09:12.1]} 10. O-O {[%clk 0:08:59.2]} 10... dxc4 {[%clk 0:09:08.8]} 0-1

[Event "Live Chess"]
[Site "Chess.com"]
[Date "2011.01.03"]
[Round "-"]
[White "Swanrama"]
[Black "hipposcottimus"]
[Result "0-1"]
[CurrentPosition "5rk1/5ppp/4p3/8/2r4q/5qRK/5P1P/1Q1N4 w - -"]
[Timezone "UTC"]
[ECO "D00"]
[ECOUrl "https://www.chess.com/openings/Queens-Pawn-Opening-1...d5-2.e3-c5"]
[UTCDate "2011.01.03"]
[UTCTime "03:18:25"]
[WhiteElo "1301"]
[BlackElo "1368"]
[TimeControl "300+3"]
[Termination "hipposcottimus won by checkmate"]
[StartTime "03:18:25"]
[EndDate "2011.01.03"]
[EndTime "03:30:42"]
[Link "https://www.chess.com/game/live/83661385"]

1. d4 {[%clk 0:05:00]} 1... d5 {[%clk 0:05:00]} 2. e3 {[%clk 0:04:58.2]} 2... c5 {[%clk 0:05:00.5]} 3. c3 {[%clk 0:04:56.7]} 3... cxd4 {[%clk 0:04:56.8]} 4. cxd4 {[%clk 0:04:47]} 4... Nc6 {[%clk 0:04:49.8]} 5. Nf3 {[%clk 0:04:41.7]} 5... Nf6 {[%clk 0:04:49.3]} 6. Bb5 {[%clk 0:04:23.7]} 6... Bg4 {[%clk 0:04:48.1]} 7. Qa4 {[%clk 0:04:24.1]} 7... Bxf3 {[%clk 0:04:30.2]} 8. gxf3 {[%clk 0:04:22.4]} 8... e6 {[%clk 0:04:29]} 9. Bxc6+ {[%clk 0:04:20.4]} 9... bxc6 {[%clk 0:04:25.1]} 10. Qxc6+ {[%clk 0:04:20.9]} 10... Nd7 {[%clk 0:04:27.8]} 11. Nc3 {[%clk 0:04:13.6]} 11... Rc8 {[%clk 0:04:30.3]} 12. Qa4 {[%clk 0:04:11.2]} 12... Qb6 {[%clk 0:04:18.9]} 13. Nb5 {[%clk 0:04:04]} 13... a6 {[%clk 0:04:11.1]} 14. Nc3 {[%clk 0:04:01.8]} 14... Bb4 {[%clk 0:04:10.8]} 15. Bd2 {[%clk 0:04:02.6]} 15... O-O {[%clk 0:04:09.5]} 16. Qxd7 {[%clk 0:03:52.7]} 16... Rc6 {[%clk 0:03:53.4]} 17. Na4 {[%clk 0:03:48]} 17... Bxd2+ {[%clk 0:03:53]} 18. Kxd2 {[%clk 0:03:45.5]} 18... Qb4+ {[%clk 0:03:44.1]} 19. Nc3 {[%clk 0:03:41.3]} 19... Qxb2+ {[%clk 0:03:44.3]} 20. Ke1 {[%clk 0:02:41.6]} 20... Qxa1+ {[%clk 0:03:39.8]} 21. Nd1 {[%clk 0:02:39.4]} 21... Rc1 {[%clk 0:03:33.6]} 22. Qa4 {[%clk 0:02:34.9]} 22... Qc3+ {[%clk 0:03:22]} 23. Ke2 {[%clk 0:02:29.3]} 23... Rc2+ {[%clk 0:03:09.8]} 24. Kf1 {[%clk 0:02:15.1]} 24... Qd2 {[%clk 0:03:10.1]} 25. Kg2 {[%clk 0:02:11]} 25... Rxa2 {[%clk 0:02:55.5]} 26. Qb3 {[%clk 0:02:05.8]} 26... a5 {[%clk 0:02:51.7]} 27. Rg1 {[%clk 0:01:58.6]} 27... a4 {[%clk 0:02:49.6]} 28. Qb1 {[%clk 0:01:59.4]} 28... a3 {[%clk 0:02:39.1]} 29. e4 {[%clk 0:02:01.1]} 29... Rc2 {[%clk 0:02:37.7]} 30. exd5 {[%clk 0:01:37.5]} 30... a2 {[%clk 0:02:33.7]} 31. Qb3 {[%clk 0:01:16]} 31... a1=Q {[%clk 0:02:27.6]} 32. Kg3 {[%clk 0:01:06.3]} 32... Qaxd4 {[%clk 0:02:23.4]} 33. Kh3 {[%clk 0:00:56.3]} 33... Qxd5 {[%clk 0:01:57.7]} 34. Qa4 {[%clk 0:00:38.9]} 34... Rc4 {[%clk 0:01:44.7]} 35. Qb3 {[%clk 0:00:24.4]} 35... Qf4 {[%clk 0:01:30.8]} 36. Qb1 {[%clk 0:00:24.7]} 36... Qdxf3+ {[%clk 0:01:21.2]} 37. Rg3 {[%clk 0:00:21]} 37... Qh4# {[%clk 0:01:23.2]} 0-1

[Event "Live Chess"]
[Site "Chess.com"]
[Date "2011.01.03"]
[Round "-"]
[White "hipposcottimus"]
[Black "Swanrama"]
[Result "1-0"]
[CurrentPosition "8/8/2pb2Qk/8/1PP5/4P3/P2r3P/6RK b - -"]
[Timezone "UTC"]
[ECO "B20"]
[ECOUrl "https://www.chess.com/openings/Sicilian-Defense"]
[UTCDate "2011.01.03"]
[UTCTime "03:01:33"]
[WhiteElo "1361"]
[BlackElo "1308"]
[TimeControl "300+3"]
[Termination "hipposcottimus won by checkmate"]
[StartTime "03:01:33"]
[EndDate "2011.01.03"]
[EndTime "03:15:44"]
[Link "https://www.chess.com/game/live/83657767"]

1. e4 {[%clk 0:05:00]} 1... c5 {[%clk 0:05:00]} 2. Bb5 {[%clk 0:04:57.7]} 2... a6 {[%clk 0:05:00.2]} 3. Be2 {[%clk 0:04:59.9]} 3... Nc6 {[%clk 0:04:59.6]} 4. Nf3 {[%clk 0:05:01]} 4... Nf6 {[%clk 0:05:01.4]} 5. d3 {[%clk 0:04:58.3]} 5... d6 {[%clk 0:05:01.6]} 6. Bg5 {[%clk 0:04:48.4]} 6... Qa5+ {[%clk 0:04:59.5]} 7. Nc3 {[%clk 0:04:44.4]} 7... Qb6 {[%clk 0:05:00.9]} 8. Na4 {[%clk 0:04:40.5]} 8... Qb5 {[%clk 0:04:59.7]} 9. c4 {[%clk 0:04:32.6]} 9... Qb4+ {[%clk 0:04:56.9]} 10. Bd2 {[%clk 0:04:31.2]} 10... Qxa4 {[%clk 0:03:53.4]} 11. Qxa4 {[%clk 0:04:27.5]} 11... Bd7 {[%clk 0:03:52.4]} 12. Qd1 {[%clk 0:04:20.1]} 12... e6 {[%clk 0:03:44.1]} 13. O-O {[%clk 0:04:16.3]} 13... g6 {[%clk 0:03:44.3]} 14. Bc3 {[%clk 0:04:12.8]} 14... Bg7 {[%clk 0:03:45.1]} 15. d4 {[%clk 0:04:13]} 15... Nxd4 {[%clk 0:03:40.2]} 16. Bxd4 {[%clk 0:04:08.4]} 16... cxd4 {[%clk 0:03:41.1]} 17. Qxd4 {[%clk 0:04:09.7]} 17... O-O {[%clk 0:03:21.6]} 18. Qxd6 {[%clk 0:03:56.2]} 18... Bc6 {[%clk 0:03:18.5]} 19. e5 {[%clk 0:03:50.1]} 19... Ne4 {[%clk 0:03:18.8]} 20. Qe7 {[%clk 0:03:21.5]} 20... Rae8 {[%clk 0:03:04.7]} 21. Qh4 {[%clk 0:03:19.9]} 21... f6 {[%clk 0:02:53.5]} 22. Bd3 {[%clk 0:03:00.7]} 22... Nc5 {[%clk 0:02:29.3]} 23. Be2 {[%clk 0:02:43]} 23... Ne4 {[%clk 0:02:26.5]} 24. Bd3 {[%clk 0:02:31.7]} 24... Nc5 {[%clk 0:02:27.3]} 25. Ne1 {[%clk 0:02:13.2]} 25... fxe5 {[%clk 0:02:23.4]} 26. b4 {[%clk 0:02:11.9]} 26... Bf6 {[%clk 0:02:20.7]} 27. Qg3 {[%clk 0:02:06]} 27... Nd7 {[%clk 0:01:59.7]} 28. Bxg6 {[%clk 0:02:01.9]} 28... hxg6 {[%clk 0:01:51.4]} 29. Qxg6+ {[%clk 0:02:02.1]} 29... Bg7 {[%clk 0:01:53]} 30. Nd3 {[%clk 0:02:00.8]} 30... e4 {[%clk 0:01:55]} 31. Nf4 {[%clk 0:02:01.9]} 31... Ne5 {[%clk 0:01:55.6]} 32. Qg5 {[%clk 0:01:47.2]} 32... Rf5 {[%clk 0:01:52.1]} 33. Qg3 {[%clk 0:01:42.9]} 33... Ref8 {[%clk 0:01:41.6]} 34. Nxe6 {[%clk 0:01:32.9]} 34... R8f7 {[%clk 0:01:25.4]} 35. Nd4 {[%clk 0:01:32]} 35... R5f6 {[%clk 0:01:24.8]} 36. Qxe5 {[%clk 0:01:21]} 36... Rg6 {[%clk 0:01:14.5]} 37. Qb8+ {[%clk 0:01:17.9]} 37... Rf8 {[%clk 0:01:14.1]} 38. Qa7 {[%clk 0:01:10.8]} 38... e3 {[%clk 0:00:59.5]} 39. fxe3 {[%clk 0:01:06.6]} 39... Rxg2+ {[%clk 0:00:58.3]} 40. Kh1 {[%clk 0:00:58.5]} 40... Rd2+ {[%clk 0:00:32.1]} 41. Nxc6 {[%clk 0:00:50.8]} 41... bxc6 {[%clk 0:00:27.8]} 42. Rxf8+ {[%clk 0:00:50.7]} 42... Bxf8 {[%clk 0:00:21.1]} 43. Rg1+ {[%clk 0:00:52.8]} 43... Kh8 {[%clk 0:00:21.3]} 44. Qxa6 {[%clk 0:00:53.5]} 44... Bd6 {[%clk 0:00:14.9]} 45. Qc8+ {[%clk 0:00:50.5]} 45... Kh7 {[%clk 0:00:03.3]} 46. Qg8+ {[%clk 0:00:49.7]} 46... Kh6 {[%clk 0:00:04.1]} 47. Qg6# {[%clk 0:00:47.2]} 1-0

[Event "Live Chess"]
[Site "Chess.com"]
[Date "2011.01.03"]
[Round "-"]
[White "christar999"]
[Black "hipposcottimus"]
[Result "1-0"]
[CurrentPosition "8/2R4Q/8/5kp1/2P5/1P1P4/P4P2/6K1 b - -"]
[Timezone "UTC"]
[ECO "C50"]
[ECOUrl "https://www.chess.com/openings/Italian-Game"]
[UTCDate "2011.01.03"]
[UTCTime "02:38:45"]
[WhiteElo "1220"]
[BlackElo "1354"]
[TimeControl "600+1"]
[Termination "christar999 won on time"]
[StartTime "02:38:45"]
[EndDate "2011.01.03"]
[EndTime "02:58:33"]
[Link "https://www.chess.com/game/live/83653128"]

1. e4 {[%clk 0:10:00]} 1... e5 {[%clk 0:10:00]} 2. Bc4 {[%clk 0:09:57.1]} 2... Nc6 {[%clk 0:09:56.7]} 3. Nf3 {[%clk 0:09:41.2]} 3... Nf6 {[%clk 0:09:54.3]} 4. d3 {[%clk 0:09:40.6]} 4... d5 {[%clk 0:09:50.3]} 5. exd5 {[%clk 0:09:40.4]} 5... Nxd5 {[%clk 0:09:47.5]} 6. Bb5 {[%clk 0:09:30.2]} 6... Bd7 {[%clk 0:09:37.7]} 7. O-O {[%clk 0:09:23.9]} 7... Bd6 {[%clk 0:09:33.8]} 8. Re1 {[%clk 0:09:06.3]} 8... Bg4 {[%clk 0:08:35.6]} 9. h3 {[%clk 0:09:04.3]} 9... Bxf3 {[%clk 0:08:31.7]} 10. Qxf3 {[%clk 0:09:04.4]} 10... Nf6 {[%clk 0:08:16.9]} 11. Bg5 {[%clk 0:08:59.4]} 11... Be7 {[%clk 0:08:05.3]} 12. Rxe5 {[%clk 0:08:50.3]} 12... O-O {[%clk 0:08:00.2]} 13. Bxc6 {[%clk 0:08:49]} 13... bxc6 {[%clk 0:08:00.2]} 14. Qxc6 {[%clk 0:08:44.4]} 14... Rb8 {[%clk 0:07:54.1]} 15. Bxf6 {[%clk 0:08:19.3]} 15... Bxf6 {[%clk 0:07:48.3]} 16. Rb5 {[%clk 0:08:12.3]} 16... Re8 {[%clk 0:06:57.3]} 17. Nc3 {[%clk 0:07:59.9]} 17... Re6 {[%clk 0:06:44.8]} 18. Qc4 {[%clk 0:07:46]} 18... Bxc3 {[%clk 0:06:22.4]} 19. Rxb8 {[%clk 0:07:41.4]} 19... Qxb8 {[%clk 0:06:17.8]} 20. Qxc3 {[%clk 0:07:41.3]} 20... f5 {[%clk 0:05:52.6]} 21. b3 {[%clk 0:07:34.5]} 21... Kh8 {[%clk 0:05:49.3]} 22. Re1 {[%clk 0:07:24.6]} 22... Rg6 {[%clk 0:05:31.4]} 23. Re7 {[%clk 0:07:17.8]} 23... c6 {[%clk 0:05:23.1]} 24. Qc5 {[%clk 0:06:58.6]} 24... f4 {[%clk 0:04:53.8]} 25. c4 {[%clk 0:05:16.6]} 25... f3 {[%clk 0:04:49.4]} 26. g3 {[%clk 0:05:14.6]} 26... h5 {[%clk 0:04:17.4]} 27. Qe3 {[%clk 0:05:11.8]} 27... Kh7 {[%clk 0:02:41.3]} 28. Qxf3 {[%clk 0:05:02.3]} 28... Rg5 {[%clk 0:02:04.9]} 29. h4 {[%clk 0:03:55]} 29... Rg4 {[%clk 0:01:53.3]} 30. Qf5+ {[%clk 0:03:45.1]} 30... Kh6 {[%clk 0:01:44.5]} 31. Re6+ {[%clk 0:03:33.9]} 31... g6 {[%clk 0:01:42.9]} 32. Qe5 {[%clk 0:02:58]} 32... Qd8 {[%clk 0:01:20.3]} 33. Qe3+ {[%clk 0:02:42.8]} 33... Kg7 {[%clk 0:00:57.8]} 34. Qxa7+ {[%clk 0:02:41.4]} 34... Kh6 {[%clk 0:00:49.9]} 35. Qe3+ {[%clk 0:02:26.4]} 35... Kg7 {[%clk 0:00:47.6]} 36. Rxc6 {[%clk 0:02:24.2]} 36... Qxh4 {[%clk 0:00:33.9]} 37. Rc7+ {[%clk 0:02:14.1]} 37... Kf6 {[%clk 0:00:27.7]} 38. Qe7+ {[%clk 0:01:55.2]} 38... Kf5 {[%clk 0:00:20.8]} 39. Qxh4 {[%clk 0:01:54.7]} 39... Rxg3+ {[%clk 0:00:14.3]} 40. Qxg3 {[%clk 0:01:53.5]} 40... h4 {[%clk 0:00:12.4]} 41. Qxh4 {[%clk 0:01:53.2]} 41... g5 {[%clk 0:00:08]} 42. Qh7+ {[%clk 0:01:48.1]} 1-0

[Event "Live Chess"]
[Site "Chess.com"]
[Date "2011.01.03"]
[Round "-"]
[White "hipposcottimus"]
[Black "christar999"]
[Result "1-0"]
[CurrentPosition "Q3k2r/p1p1np1p/qp2p1p1/6B1/2P5/2P5/P4PPP/3RK2R b Kkq -"]
[Timezone "UTC"]
[ECO "A40"]
[ECOUrl "https://www.chess.com/openings/Modern-Defense-with-1-d4-2.c4-Bg7-3.e4"]
[UTCDate "2011.01.03"]
[UTCTime "02:33:08"]
[WhiteElo "1364"]
[BlackElo "1208"]
[TimeControl "600+1"]
[Termination "hipposcottimus won by resignation"]
[StartTime "02:33:08"]
[EndDate "2011.01.03"]
[EndTime "02:35:55"]
[Link "https://www.chess.com/game/live/83652240"]

1. e4 {[%clk 0:10:00]} 1... g6 {[%clk 0:10:00]} 2. d4 {[%clk 0:09:59.2]} 2... Bg7 {[%clk 0:10:00]} 3. c4 {[%clk 0:09:59.8]} 3... b6 {[%clk 0:09:52.7]} 4. Nc3 {[%clk 0:10:00]} 4... Bb7 {[%clk 0:09:52.8]} 5. Be2 {[%clk 0:10:00]} 5... Nc6 {[%clk 0:09:46.3]} 6. Be3 {[%clk 0:09:52.7]} 6... e6 {[%clk 0:09:42.3]} 7. Bf3 {[%clk 0:09:51.2]} 7... Nge7 {[%clk 0:09:35.2]} 8. d5 {[%clk 0:09:37.3]} 8... Ne5 {[%clk 0:09:34.6]} 9. dxe6 {[%clk 0:09:30.1]} 9... Nxf3+ {[%clk 0:09:34.2]} 10. Nxf3 {[%clk 0:09:28.4]} 10... dxe6 {[%clk 0:09:34.1]} 11. e5 {[%clk 0:09:09.8]} 11... Bxf3 {[%clk 0:09:27.5]} 12. Qxf3 {[%clk 0:09:04.5]} 12... Bxe5 {[%clk 0:09:24.7]} 13. Rd1 {[%clk 0:08:57.4]} 13... Bxc3+ {[%clk 0:09:24.1]} 14. bxc3 {[%clk 0:08:55.8]} 14... Qc8 {[%clk 0:09:17.5]} 15. Bg5 {[%clk 0:08:48.8]} 15... Qa6 {[%clk 0:09:08.9]} 16. Qxa8+ {[%clk 0:08:43.7]} 1-0

[Event "Live Chess"]
[Site "Chess.com"]
[Date "2011.01.03"]
[Round "-"]
[White "RBtraj1"]
[Black "hipposcottimus"]
[Result "1-0"]
[CurrentPosition "2krr3/ppp2p1p/4bp2/Q7/Pn3P2/3P1N1P/2P3P1/1K1R1B1R b - -"]
[Timezone "UTC"]
[ECO "C31"]
[ECOUrl "https://www.chess.com/openings/Kings-Gambit-Declined-Falkbeer-Accepted-Staunton-Line"]
[UTCDate "2011.01.03"]
[UTCTime "00:38:03"]
[WhiteElo "1392"]
[BlackElo "1353"]
[TimeControl "540+5"]
[Termination "RBtraj1 won on time"]
[StartTime "00:38:03"]
[EndDate "2011.01.03"]
[EndTime "00:46:22"]
[Link "https://www.chess.com/game/live/83625399"]

1. e4 {[%clk 0:09:00]} 1... e5 {[%clk 0:09:00]} 2. f4 {[%clk 0:09:03.4]} 2... d5 {[%clk 0:08:59.4]} 3. exd5 {[%clk 0:09:01.4]} 3... e4 {[%clk 0:09:00.6]} 4. Qe2 {[%clk 0:08:50.5]} 4... Nf6 {[%clk 0:08:58.2]} 5. d3 {[%clk 0:08:47.7]} 5... Qxd5 {[%clk 0:08:59.3]} 6. Nc3 {[%clk 0:08:46.6]} 6... Bb4 {[%clk 0:08:57]} 7. Bd2 {[%clk 0:08:45.8]} 7... Bxc3 {[%clk 0:09:00.5]} 8. Bxc3 {[%clk 0:08:49.2]} 8... Nc6 {[%clk 0:08:32.4]} 9. Bxf6 {[%clk 0:08:42.3]} 9... gxf6 {[%clk 0:08:33.4]} 10. Qxe4+ {[%clk 0:07:55.1]} 10... Be6 {[%clk 0:08:24]} 11. Nf3 {[%clk 0:07:08.2]} 11... Qb5 {[%clk 0:07:52.4]} 12. b3 {[%clk 0:06:54.1]} 12... O-O-O {[%clk 0:07:36.6]} 13. O-O-O {[%clk 0:06:35.8]} 13... Nb4 {[%clk 0:07:29.1]} 14. Kb1 {[%clk 0:06:26.9]} 14... Qa5 {[%clk 0:07:08.4]} 15. a4 {[%clk 0:06:22.7]} 15... Rhe8 {[%clk 0:07:02.4]} 16. h3 {[%clk 0:05:37.6]} 16... Bxb3 {[%clk 0:07:01]} 17. Qf5+ {[%clk 0:05:39.9]} 17... Be6 {[%clk 0:07:02.8]} 18. Qxa5 {[%clk 0:05:42.2]} 1-0

[Event "Live Chess"]
[Site "Chess.com"]
[Date "2011.01.02"]
[Round "-"]
[White "deso75"]
[Black "hipposcottimus"]
[Result "1-0"]
[CurrentPosition "3q1rk1/p1p2ppp/3b4/8/4n1b1/3P4/PBPQ1PPP/RN3RK1 w - -"]
[Timezone "UTC"]
[ECO "C50"]
[ECOUrl "https://www.chess.com/openings/Italian-Game"]
[UTCDate "2011.01.02"]
[UTCTime "22:00:47"]
[WhiteElo "1299"]
[BlackElo "1369"]
[TimeControl "480"]
[Termination "deso75 won by resignation"]
[StartTime "22:00:47"]
[EndDate "2011.01.02"]
[EndTime "22:03:58"]
[Link "https://www.chess.com/game/live/83589154"]

1. e4 {[%clk 0:08:00]} 1... e5 {[%clk 0:08:00]} 2. Bc4 {[%clk 0:07:58.2]} 2... Nc6 {[%clk 0:07:57.2]} 3. Nf3 {[%clk 0:07:52.2]} 3... Nf6 {[%clk 0:07:53.8]} 4. d3 {[%clk 0:07:48.9]} 4... d5 {[%clk 0:07:50.5]} 5. Bb5 {[%clk 0:07:45.7]} 5... dxe4 {[%clk 0:07:37.5]} 6. Nxe5 {[%clk 0:07:39.2]} 6... Bd7 {[%clk 0:07:33.8]} 7. Nxc6 {[%clk 0:07:29.4]} 7... bxc6 {[%clk 0:07:32.1]} 8. Ba6 {[%clk 0:07:20.4]} 8... Bg4 {[%clk 0:07:12.3]} 9. Qd2 {[%clk 0:07:06.9]} 9... Bd6 {[%clk 0:06:56.2]} 10. O-O {[%clk 0:06:56.4]} 10... O-O {[%clk 0:06:48.8]} 11. Bb7 {[%clk 0:06:53.9]} 11... Rb8 {[%clk 0:06:43.9]} 12. Bxc6 {[%clk 0:06:51.7]} 12... Rb6 {[%clk 0:06:39.9]} 13. Bxe4 {[%clk 0:06:46.1]} 13... Rxb2 {[%clk 0:06:20.9]} 14. Bxb2 {[%clk 0:06:39]} 14... Nxe4 {[%clk 0:06:17.9]} 1-0